fUST/lending_fUST_20240916
["ID","MTS","AMOUNT","RATE_DAILY","PERIOD"]
[338321241,1726495854852,-813.54,0.00019452,2]
[338321242,1726495854861,-500.0,0.00019452,2]
[338321243,1726495854872,-500.0,0.00019452,2]
[338321244,1726495854883,-1881.78,0.00019452,2]
[338321245,1726495854892,-689.78,0.00019452,2]
[338321246,1726495854902,-506.19130394,0.00019452,2]
[338321247,1726495854912,-500.0,0.00019452,2]
[338321248,1726495854921,-500.0,0.00019452,2]
[338321249,1726495854933,-500.0,0.00019452,2]
[338321250,1726495854942,-500.0,0.00019452,2]
[338321251,1726495854951,-500.0,0.00019452,2]
[338321252,1726495854961,-704.86,0.00019452,2]
[338321253,1726495854971,-609.37391629,0.00019452,2]
[338321254,1726495854980,-500.0,0.00019452,2]
[338321255,1726495854990,-2093.0,0.00019452,2]
[338321256,1726495855000,-1307.39,0.00019452,2]
[338321257,1726495855009,-756.07,0.00019452,2]
[338321258,1726495855019,-500.0,0.00019452,2]
[338321259,1726495855029,-500.0,0.00019452,2]
[338321260,1726495855038,-500.0,0.00019452,2]
[338321261,1726495855049,-1684.58,0.00019452,2]
[338321262,1726495855059,-549.29,0.00019452,2]
[338321263,1726495855069,-500.0,0.00019452,2]
[338321264,1726495855079,-500.0,0.00019452,2]
[338321265,1726495855089,-500.0,0.00019452,2]
[338321266,1726495855098,-1179.3,0.00019452,2]
[338321267,1726495855108,-2030.39,0.00019452,2]
[338321268,1726495855117,-503.31956141,0.00019452,2]
[338321269,1726495855127,-500.0,0.00019452,2]
[338321270,1726495855136,-500.0,0.00019452,2]
[338321271,1726495855146,-500.0,0.00019452,2]
[338321272,1726495855155,-500.0,0.00019452,2]
[338321273,1726495855164,-500.0,0.00019452,2]
[338321274,1726495855173,-500.0,0.00019452,2]
[338321275,1726495855183,-500.0,0.00019452,2]
[338321276,1726495855193,-500.0,0.00019452,2]
[338321277,1726495855202,-945.84,0.00019452,2]
[338321278,1726495855211,-805.33,0.00019452,2]
[338321279,1726495855221,-500.0,0.00019452,2]
[338321280,1726495855230,-3467.3,0.00019452,2]
[338321281,1726495855240,-1570.57,0.00019452,2]
[338321282,1726495855249,-564.87,0.00019452,2]
[338321283,1726495855260,-500.0,0.00019452,2]
[338321284,1726495855271,-2318.75,0.00019452,2]
[338321285,1726495855281,-500.0,0.00019452,2]
[338321286,1726495855290,-598.33,0.00019452,2]
[338321287,1726495855302,-522.19,0.00019452,2]
[338321288,1726495855311,-327.31,0.00019452,2]
[338321289,1726495855321,-514.77,0.00019452,2]
[338321290,1726495855331,-500.0,0.00019452,2]
[338321291,1726495855341,-500.0,0.00019452,2]
[338321292,1726495855351,-533.92,0.00019452,2]
[338321293,1726495855360,-508.6625848,0.00019452,2]
[338321294,1726495855370,-650.26,0.00019452,2]
[338321295,1726495855379,-500.0,0.00019452,2]
[338321296,1726495855389,-492.09204323,0.00019452,2]
[338321297,1726495855399,-500.0,0.00019452,2]
[338321298,1726495855409,-500.0,0.00019452,2]
[338321299,1726495855419,-500.0,0.00019452,2]
[338321300,1726495855429,-500.0,0.00019452,2]
[338321301,1726495855439,-500.0,0.00019452,2]
[338321302,1726495855449,-407.55,0.00019452,2]
[338321303,1726495855459,-650.87,0.00019452,2]
[338321304,1726495855469,-500.0,0.00019452,2]
[338321305,1726495855479,-500.0,0.00019452,2]
[338321306,1726495855488,-2920.17,0.00019452,2]
[338321307,1726495855498,-588.18,0.00019452,2]
[338321308,1726495855508,-2828.62,0.00019452,2]
[338321309,1726495855518,-868.93,0.00019452,2]
[338321310,1726495855528,-500.0,0.00019452,2]
[338321311,1726495855538,-500.0,0.00019452,2]
[338321312,1726495855548,-500.0,0.00019452,2]
[338321313,1726495855560,-731.48,0.00019452,2]
[338321314,1726495855571,-2021.03,0.00019452,2]
[338321315,1726495855580,-854.31,0.00019452,2]
[338321316,1726495855590,-968.53,0.00019452,2]
[338321317,1726495855601,-445.52632241,0.00019452,2]
[338321318,1726495856114,-59.16367759,0.00019452,2]
[338321319,1726495856123,-500.0,0.00019452,2]
[338321320,1726495856133,-500.0,0.00019452,2]
[338321321,1726495856142,-4437.03,0.00019452,2]
[338321322,1726495856151,-500.0,0.00019452,2]
[338321323,1726495856161,-500.0,0.00019452,2]
[338321324,1726495856170,-500.0,0.00019452,2]
[338321325,1726495856179,-750.23,0.00019452,2]
[338321326,1726495856189,-1049.7,0.00019452,2]
[338321327,1726495856198,-500.0,0.00019452,2]
[338321328,1726495856208,-500.0,0.00019452,2]
[338321329,1726495856217,-359.32384917,0.00019452,2]
[338321330,1726495856226,-1481.54,0.00019452,2]
[338321331,1726495856236,-657.8,0.00019452,2]
[338321332,1726495856245,-501.08207087,0.00019452,2]
[338321333,1726495856254,-500.0,0.00019452,2]
[338321334,1726495856263,-832.11,0.00019452,2]
[338321335,1726495856273,-1340.78,0.00019452,2]
[338321336,1726495856284,-1301.89,0.00019452,2]
[338321337,1726495856294,-2143.78,0.00019452,2]
[338321338,1726495856305,-1333.68,0.00019452,2]
[338321339,1726495856314,-1158.31,0.00019452,2]
[338321340,1726495856323,-3193.52,0.00019452,2]
[338321341,1726495856333,-3644.15,0.00019452,2]
[338321342,1726495856343,-500.0,0.00019452,2]
[338321343,1726495856353,-500.0,0.00019452,2]
[338321344,1726495856363,-567.55,0.00019452,2]
[338321345,1726495856373,-3336.56,0.00019452,2]
[338321346,1726495856383,-3104.55,0.00019452,2]
[338321347,1726495856393,-53029.3214951,0.00019452,2]
[338321351,1726495902096,3946.11,0.00027397,120]
[338321352,1726495902357,3946.11,0.00027397,120]
[338321353,1726495902636,3946.11,0.00027397,120]
[338321354,1726495902891,3946.11,0.00027397,120]
[338321355,1726495903163,3946.11,0.00027397,120]
[338321356,1726495903476,3946.11,0.00027397,120]
[338321357,1726495903754,3946.11,0.00027397,120]
[338321358,1726495904107,3946.11,0.00027397,120]
[338321359,1726495904359,3946.11,0.00027397,120]
[338321360,1726495904637,3946.11,0.00027397,120]
[338321361,1726495904939,3946.11,0.00027397,120]
[338321362,1726495905225,3946.11,0.00027397,120]
[338321363,1726495905513,3946.11,0.00027397,120]
[338321364,1726495905954,3946.11,0.00027397,120]
[338321365,1726495906288,3946.11,0.00027397,120]
[338321366,1726495906566,3946.11,0.00027397,120]
[338321367,1726495906862,3946.11,0.00027397,120]
[338321368,1726495907214,3946.11,0.00027397,120]
[338321369,1726495907523,3946.11,0.00027397,120]
[338321370,1726495907806,3946.11,0.00027397,120]
[338321371,1726495908445,3946.11,0.00027397,120]
[338321372,1726495908552,3946.11,0.00027397,120]
[338321373,1726495908636,3946.11,0.00027397,120]
[338321374,1726495908886,3946.2011292,0.00027397,120]
[338321375,1726495939206,155.0,0.00028,120]
[338321376,1726495944382,155.0,0.00028,120]
[338321377,1726495948977,155.0,0.00028,120]
[338321378,1726495950726,758.86,0.000268,120]
[338321379,1726495953908,155.0,0.00028,120]
[338321380,1726495958434,155.0,0.00028,120]
[338321381,1726495962980,155.0,0.00028,120]
[338321382,1726495963798,161.445196,0.00013699,2]
[338321383,1726495967546,155.0,0.00028,120]
[338321384,1726495972402,155.0,0.00028,120]
[338321385,1726495976971,155.0,0.00028,120]
[338321386,1726495981863,238.09807683,0.00028,120]
[338321387,1726495994041,264.0,0.00019168,120]
[338321388,1726495994513,264.0,0.00019158,120]
[338321389,1726495995060,264.0,0.00019148,120]
[338321390,1726495995537,264.0,0.0002049,120]
[338321391,1726495996027,264.0,0.0002048,120]
[338321392,1726495996524,264.0,0.0002047,120]
[338321393,1726495997000,264.0,0.0002189,120]
[338321394,1726495997536,264.0,0.0002188,120]
[338321395,1726495998152,264.0,0.0002318,120]
[338321396,1726495998647,272.61,0.0002317,120]
[338321398,1726496421074,567.53,0.00028,120]
[338321399,1726496421328,567.53,0.00028,120]
[338321400,1726496422047,567.53,0.00028,120]
[338321401,1726496422693,567.53,0.00028,120]
[338321402,1726496422972,567.53,0.00028,120]
[338321403,1726496423245,567.53,0.00028,120]
[338321404,1726496423523,567.53,0.00028,120]
[338321405,1726496423826,567.53,0.00028,120]
[338321406,1726496424188,567.53,0.00028,120]
[338321407,1726496424459,567.53,0.00028,120]
[338321408,1726496424732,567.53,0.00028,120]
[338321409,1726496424983,567.53,0.00028,120]
[338321410,1726496425272,567.53,0.00028,120]
[338321411,1726496425769,567.53,0.00028,120]
[338321412,1726496426028,567.53,0.00028,120]
[338321413,1726496426282,567.53,0.00028,120]
[338321414,1726496426608,567.53,0.00028,120]
[338321415,1726496426888,567.53,0.00028,120]
[338321416,1726496427182,567.53,0.00028,120]
[338321417,1726496427451,567.53,0.00028,120]
[338321418,1726496428019,567.53,0.00028,120]
[338321419,1726496428114,567.53,0.00028,120]
[338321420,1726496428221,567.53,0.00028,120]
[338321421,1726496428753,567.73362197,0.00028,120]
[338321422,1726496461458,161.445196,0.00013699,2]
[338321424,1726496551797,500.0,0.00027397,120]
[338321425,1726496552059,369.73,0.00027397,120]
[338321426,1726496593092,211.0,0.00019157,120]
[338321427,1726496593634,211.0,0.00019147,120]
[338321428,1726496594130,211.0,0.00019137,120]
[338321429,1726496594592,211.0,0.0001997,120]
[338321430,1726496595343,211.0,0.0001996,120]
[338321431,1726496595813,211.0,0.0001995,120]
[338321432,1726496596287,211.0,0.0002108,120]
[338321433,1726496596748,211.0,0.0002107,120]
[338321434,1726496597208,211.0,0.00022182,120]
[338321435,1726496597670,213.0,0.00022172,120]
[338321436,1726496619509,155.0,0.00028,120]
[338321437,1726496624307,155.0,0.00028,120]
[338321438,1726496629176,155.0,0.00028,120]
[338321439,1726496634005,155.0,0.00028,120]
[338321440,1726496638478,155.0,0.00028,120]
[338321441,1726496643295,155.0,0.00028,120]
[338321442,1726496647799,155.0,0.00028,120]
[338321443,1726496652310,155.0,0.00028,120]
[338321444,1726496657441,155.0,0.00028,120]
[338321445,1726496662870,238.09807683,0.00028,120]
[338321451,1726496713366,150.5,0.0001899,120]
[338321452,1726496713882,150.5,0.0001898,120]
[338321453,1726496714320,235.61,0.0001897,120]
[338321454,1726496777892,747.59365431,0.00014,2]
[338321455,1726496826263,1000.0,0.00028,120]
[338321456,1726496833268,150.5,0.0001899,120]
[338321457,1726496833340,411.0,0.0001899,120]
[338321458,1726496833412,322.0,0.0001899,120]
[338321459,1726496833747,150.5,0.0001898,120]
[338321460,1726496833824,411.0,0.0001898,120]
[338321461,1726496833905,322.0,0.0001898,120]
[338321462,1726496833985,150.5,0.0001899,120]
[338321463,1726496834060,150.5,0.0001899,120]
[338321464,1726496834167,219.0,0.0001899,120]
[338321465,1726496834265,150.5,0.0001897,120]
[338321466,1726496834343,322.0,0.0001897,120]
[338321467,1726496834421,150.5,0.0001898,120]
[338321468,1726496834496,150.5,0.0001898,120]
[338321469,1726496834735,219.0,0.0001898,120]
[338321470,1726496834815,150.5,0.0001897,120]
[338321471,1726496834893,322.0,0.00019989,120]
[338321472,1726496835509,411.0,0.0001897,120]
[338321473,1726496835588,150.5,0.0001897,120]
[338321474,1726496835691,219.0,0.0001897,120]
[338321475,1726496835768,322.0,0.00019979,120]
[338321476,1726496835842,150.5,0.00019989,120]
[338321477,1726496835921,150.5,0.00019989,120]
[338321478,1726496836010,411.0,0.00019989,120]
[338321479,1726496836095,150.5,0.00019989,120]
[338321480,1726496836210,219.0,0.00019989,120]
[338321481,1726496836290,256.34,0.00019979,120]
[338321482,1726496836365,322.0,0.00019969,120]
[338321483,1726496836438,150.5,0.00019979,120]
[338321484,1726496836514,411.0,0.00019979,120]
[338321485,1726496836601,150.5,0.00019979,120]
[338321486,1726496836794,322.0,0.0002097,120]
[338321487,1726496836866,219.0,0.00019979,120]
[338321488,1726496836940,270.19,0.00019969,120]
[338321489,1726496837025,150.5,0.00019969,120]
[338321490,1726496837124,411.0,0.00019969,120]
[338321491,1726496837206,322.0,0.0002096,120]
[338321492,1726496837281,219.0,0.00019969,120]
[338321493,1726496837368,276.59,0.0002097,120]
[338321494,1726496837469,411.0,0.0002097,120]
[338321495,1726496837559,322.0,0.0002218,120]
[338321496,1726496837668,219.0,0.0002097,120]
[338321497,1726496837837,411.0,0.0002096,120]
[338321498,1726496837918,324.0,0.0002217,120]
[338321499,1726496838010,219.0,0.0002096,120]
[338321500,1726496838107,411.0,0.0002218,120]
[338321501,1726496838215,219.0,0.0002218,120]
[338321502,1726496838544,417.83,0.0002217,120]
[338321503,1726496838680,224.32,0.0002217,120]
[338321504,1726496844139,1000.0,0.00028,120]
[338321506,1726496878061,1000.0,0.00028,120]
[338321509,1726496904662,188.0,0.0002,120]
[338321510,1726496907236,1592.23238279,0.0002,120]
[338321512,1726496911130,298.65060927,7e-05,120]
[338321513,1726496913505,2231.4870139,0.00014,2]
[338321514,1726496919540,2235.4970292,0.00028,120]
[338321515,1726496920909,1029.65723614,0.000278,120]
[338321516,1726496921229,4680.23574844,0.0002,120]
[338321518,1726496922497,1000.0,0.00028,120]
[338321519,1726496922923,5582.70790083,0.00025,120]
[338321520,1726496923205,209.19341571,0.00025,120]
[338321521,1726496923278,3433.6715788,0.00028,120]
[338321522,1726496923368,1487.64023329,0.00025,120]
[338321523,1726496924672,1129.08656198,0.00027,120]
[338321524,1726496925840,2142.33396491,0.00028,120]
[338321525,1726496928521,1483.05025513,0.00014,2]
[338321526,1726496936607,1312.74984726,0.00014,2]
[338321527,1726496945170,-165.8999485,0.00015978,2]
[338321528,1726496945211,-3000.0,0.0001621,2]
[338321529,1726496945248,-300.0,0.0001649,2]
[338321530,1726496945278,-24900.0,0.00016491,2]
[338321531,1726496945310,-1943.239949,0.0001685,2]
[338321532,1726496945344,-4529.34366263,0.00016878,2]
[338321533,1726496953454,2353.0,0.00018869,120]
[338321534,1726496953522,221.0,0.00018869,120]
[338321535,1726496953991,2353.0,0.00018859,120]
[338321536,1726496954064,221.0,0.00018859,120]
[338321537,1726496954480,221.0,0.00018849,120]
[338321538,1726496954546,2353.0,0.00018849,120]
[338321539,1726496954947,221.0,0.0001969,120]
[338321540,1726496955031,2353.0,0.0001969,120]
[338321541,1726496955403,221.0,0.0001968,120]
[338321542,1726496955515,2353.0,0.0001968,120]
[338321543,1726496955853,221.0,0.0001967,120]
[338321544,1726496955931,2353.0,0.0001967,120]
[338321545,1726496956137,-470.65633737,0.00016878,2]
[338321546,1726496956308,221.0,0.000208,120]
[338321547,1726496956408,2353.0,0.000208,120]
[338321548,1726496956770,221.0,0.0002079,120]
[338321549,1726496956889,2353.0,0.0002079,120]
[338321550,1726496957284,221.0,0.0002211,120]
[338321551,1726496957364,2353.0,0.0002211,120]
[338321552,1726496957755,227.82,0.000221,120]
[338321553,1726496957854,2357.94,0.000221,120]
[338321554,1726497003392,200.0,0.00027,120]
[338321555,1726497003472,2777.8639191,0.00027,120]
[338321556,1726497003557,1174.0,0.00027397,120]
[338321576,1726497032642,-904.16945634,0.00017314,2]
[338321577,1726497032652,-300.0,0.00017314,2]
[338321578,1726497032661,-300.0,0.00017314,2]
[338321579,1726497032671,-4626.46088196,0.00017315,2]
[338321580,1726497032683,-579.99,0.00017315,2]
[338321581,1726497032695,-1592.13531529,0.00017315,2]
[338321582,1726497032706,-580.0,0.00017315,2]
[338321590,1726497038708,-7117.94197525,0.00017315,2]
[338321592,1726497038718,-8422.75,0.00017605,2]
[338321593,1726497038727,-6758.3431509,0.00018032,2]
[338321594,1726497038736,-150.0,0.00018135,2]
[338321595,1726497038746,-6758.3431509,0.00018343,2]
[338321596,1726497038758,-6758.3431509,0.00018424,2]
[338321597,1726497038767,-5076.29193601,0.000187,2]
[338321598,1726497038777,-174.60276915,0.0001877,2]
[338321599,1726497038786,-1000.0,0.0001879,2]
[338321600,1726497038796,-3000.0,0.000188,2]
[338321601,1726497038806,-3000.0,0.0001881,2]
[338321602,1726497038816,-3000.0,0.0001882,2]
[338321603,1726497038825,-6758.3431509,0.00018821,2]
[338321604,1726497038835,-3000.0,0.0001883,2]
[338321605,1726497038844,-174.60276913,0.00018837,2]
[338321606,1726497038853,-3000.0,0.0001884,2]
[338321607,1726497038863,-3000.0,0.0001885,2]
[338321608,1726497038872,-3000.0,0.0001886,2]
[338321609,1726497038882,-280.84,0.0001886,3]
[338321610,1726497038891,-842.52,0.0001886,3]
[338321611,1726497038900,-500.0,0.00018869,2]
[338321612,1726497038910,-500.0,0.00018869,2]
[338321613,1726497038919,-500.0,0.00018869,2]
[338321615,1726497038928,-156.20490408,0.00018869,2]
[338321617,1726497038938,-500.0,0.00018869,2]
[338321618,1726497038948,-496.32435612,0.00018869,2]
[338321619,1726497038957,-500.0,0.00018869,2]
[338321620,1726497038967,-500.0,0.00018869,2]
[338321621,1726497038976,-500.0,0.00018869,2]
[338321622,1726497038985,-488.61372062,0.00018869,2]
[338321623,1726497038994,-500.0,0.00018869,2]
[338321624,1726497039003,-500.0,0.00018869,2]
[338321625,1726497039014,-500.68356716,0.00018869,2]
[338321626,1726497039023,-500.0,0.00018869,2]
[338321627,1726497039033,-500.0,0.00018869,2]
[338321628,1726497039041,-500.0,0.00018869,2]
[338321629,1726497039051,-500.0,0.00018869,2]
[338321630,1726497039061,-500.0,0.00018869,2]
[338321631,1726497039071,-500.0,0.00018869,2]
[338321632,1726497039080,-500.0,0.00018869,2]
[338321633,1726497039090,-500.0,0.00018869,2]
[338321634,1726497039099,-500.0,0.00018869,2]
[338321635,1726497039109,-500.0,0.00018869,2]
[338321636,1726497039118,-500.0,0.00018869,2]
[338321637,1726497039127,-500.0,0.00018869,2]
[338321638,1726497039136,-500.0,0.00018869,2]
[338321639,1726497039146,-500.0,0.00018869,2]
[338321640,1726497039155,-500.0,0.00018869,2]
[338321641,1726497039164,-500.0,0.00018869,2]
[338321642,1726497039174,-500.0,0.00018869,2]
[338321643,1726497039183,-500.0,0.00018869,2]
[338321644,1726497039192,-500.0,0.00018869,2]
[338321645,1726497039201,-375.29805272,0.00018869,2]
[338321646,1726497039210,-500.0,0.00018869,2]
[338321647,1726497039220,-500.0,0.00018869,2]
[338321648,1726497039230,-500.0,0.00018869,2]
[338321649,1726497039238,-500.0,0.00018869,2]
[338321650,1726497039247,-500.0,0.00018869,2]
[338321651,1726497039260,-500.0,0.00018869,2]
[338321652,1726497039271,-500.0,0.00018869,2]
[338321653,1726497039281,-500.0,0.00018869,2]
[338321654,1726497039291,-500.0,0.00018869,2]
[338321655,1726497039300,-500.0,0.00018869,2]
[338321656,1726497039310,-500.0,0.00018869,2]
[338321657,1726497039319,-500.0,0.00018869,2]
[338321658,1726497039330,-500.0,0.00018869,2]
[338321659,1726497039339,-500.0,0.00018869,2]
[338321660,1726497039348,-500.0,0.00018869,2]
[338321661,1726497039358,-500.0,0.00018869,2]
[338321662,1726497039367,-500.0,0.00018869,2]
[338321663,1726497039378,-500.0,0.00018869,2]
[338321664,1726497039387,-500.0,0.00018869,2]
[338321665,1726497039397,-500.0,0.00018869,2]
[338321666,1726497039406,-500.0,0.00018869,2]
[338321667,1726497039415,-500.0,0.00018869,2]
[338321668,1726497039424,-500.0,0.00018869,2]
[338321669,1726497039651,-500.0,0.00018869,2]
[338321670,1726497039662,-500.0,0.00018869,2]
[338321671,1726497039672,-500.0,0.00018869,2]
[338321672,1726497039681,-500.0,0.00018869,2]
[338321673,1726497039691,-500.0,0.00018869,2]
[338321674,1726497039700,-500.0,0.00018869,2]
[338321675,1726497039710,-500.0,0.00018869,2]
[338321676,1726497039719,-500.0,0.00018869,2]
[338321677,1726497039729,-500.0,0.00018869,2]
[338321678,1726497039738,-500.0,0.00018869,2]
[338321679,1726497039747,-500.0,0.00018869,2]
[338321680,1726497039759,-500.0,0.00018869,2]
[338321681,1726497039775,-500.0,0.00018869,2]
[338321682,1726497039784,-500.0,0.00018869,2]
[338321683,1726497039794,-500.0,0.00018869,2]
[338321684,1726497039803,-500.0,0.00018869,2]
[338321685,1726497039813,-500.0,0.00018869,2]
[338321686,1726497039822,-500.0,0.00018869,2]
[338321687,1726497039831,-500.0,0.00018869,2]
[338321688,1726497039840,-500.0,0.00018869,2]
[338321689,1726497039851,-500.0,0.00018869,2]
[338321690,1726497039860,-500.0,0.00018869,2]
[338321691,1726497039870,-500.0,0.00018869,2]
[338321692,1726497039879,-500.0,0.00018869,2]
[338321693,1726497039888,-500.0,0.00018869,2]
[338321694,1726497039898,-500.0,0.00018869,2]
[338321695,1726497039907,-500.0,0.00018869,2]
[338321696,1726497039919,-500.0,0.00018869,2]
[338321697,1726497039929,-500.0,0.00018869,2]
[338321698,1726497039938,-500.0,0.00018869,2]
[338321699,1726497039948,-459.16680962,0.00018869,2]
[338321700,1726497039958,-500.0,0.00018869,2]
[338321701,1726497039968,-500.0,0.00018869,2]
[338321702,1726497039977,-500.0,0.00018869,2]
[338321703,1726497039987,-500.0,0.00018869,2]
[338321704,1726497039996,-500.0,0.00018869,2]
[338321705,1726497040011,-500.00000001,0.00018869,2]
[338321706,1726497040021,-500.0,0.00018869,2]
[338321707,1726497040031,-500.0,0.00018869,2]
[338321708,1726497040040,-500.0,0.00018869,2]
[338321709,1726497040050,-500.0,0.00018869,2]
[338321710,1726497040059,-500.0,0.00018869,2]
[338321711,1726497040069,-3000.0,0.0001887,2]
[338321712,1726497040078,-53303.4534702,0.0001887,2]
[338321713,1726497040087,-26636.1838688,0.0001887,3]
[338321714,1726497040097,-53303.4534702,0.00018879,2]
[338321715,1726497040107,-26636.1838688,0.00018879,3]
[338321716,1726497040116,-500.0,0.00018879,2]
[338321718,1726497040126,-500.0,0.00018879,2]
[338321719,1726497040135,-183.20740506,0.00018879,2]
[338321720,1726497040144,-500.0,0.00018879,2]
[338321721,1726497040155,-342.17386292,0.00018879,2]
[338321722,1726497040164,-500.0,0.00018879,2]
[338321723,1726497040173,-184.02556308,0.00018879,2]
[338321724,1726497040182,-156.40872327,0.00018879,2]
[338321725,1726497040192,-500.0,0.00018879,2]
[338321726,1726497040201,-500.0,0.00018879,2]
[338321727,1726497040210,-500.0,0.00018879,2]
[338321728,1726497040220,-500.0,0.00018879,2]
[338321729,1726497040230,-500.0,0.00018879,2]
[338321730,1726497040239,-153.57544416,0.00018879,2]
[338321731,1726497040249,-500.0,0.00018879,2]
[338321732,1726497040260,-500.0,0.00018879,2]
[338321733,1726497040273,-500.0,0.00018879,2]
[338321734,1726497040282,-3000.0,0.0001888,2]
[338321735,1726497040292,-53303.4534702,0.0001888,2]
[338321736,1726497040301,-26636.1838688,0.0001888,3]
[338321737,1726497040310,-3000.0,0.0001889,2]
[338321739,1726497040321,-3000.0,0.000189,2]
[338321741,1726497040330,-174.60276913,0.00018903,2]
[338321742,1726497040339,-420.0,0.00018904,2]
[338321744,1726497040349,-3000.0,0.0001891,2]
[338321746,1726497040359,-3000.0,0.0001892,2]
[338321748,1726497040369,-3000.0,0.0001893,2]
[338321750,1726497040379,-3000.0,0.0001894,2]
[338321752,1726497040388,-3000.0,0.0001895,2]
[338321754,1726497040398,-3000.0,0.0001896,2]
[338321756,1726497040407,-53303.4534702,0.00018969,3]
[338321758,1726497040416,-26636.1838688,0.00018969,3]
[338321761,1726497040426,-3000.0,0.0001897,2]
[338321763,1726497040436,-174.60276913,0.0001897,2]
[338321765,1726497040446,-3000.0,0.0001898,2]
[338321767,1726497040456,-3000.0,0.0001899,2]
[338321769,1726497040466,-53303.4534702,0.0001899,3]
[338321771,1726497040476,-26636.1838688,0.0001899,3]
[338321773,1726497040486,-215.429834,0.0001899,2]
[338321775,1726497040495,-3000.0,0.00019,2]
[338321777,1726497040510,-7222.49881617,0.00019,2]
[338321779,1726497040520,-3000.0,0.0001901,2]
[338321781,1726497040529,-53303.4534702,0.0001901,3]
[338321783,1726497040539,-26636.1838688,0.0001901,3]
[338321785,1726497040549,-3000.0,0.0001902,2]
[338321787,1726497040558,-3000.0,0.0001903,2]
[338321789,1726497040568,-3000.0,0.0001904,2]
[338321791,1726497040579,-420.0,0.00019045,2]
[338321793,1726497040588,-3000.0,0.0001905,2]
[338321795,1726497040598,-53272.3677376,0.00019058,3]
[338321797,1726497040608,-3000.0,0.0001906,2]
[338321799,1726497040617,-77343.02841092,0.00019068,2]
[338321801,1726497040627,-3000.0,0.0001907,2]
[338321803,1726497040637,-6758.3431509,0.00019071,2]
[338321805,1726497040648,-2750.53008062,0.00019078,2]
[338321807,1726497040658,-3000.0,0.0001908,2]
[338321809,1726497040667,-3000.0,0.0001909,2]
[338321811,1726497040676,-150.112233,0.000191,2]
[338321813,1726497040686,-150.112233,0.000191,2]
[338321815,1726497040696,-150.112234,0.000191,2]
[338321817,1726497040706,-3000.0,0.000191,2]
[338321819,1726497040715,-150.112234,0.000191,2]
[338321821,1726497040725,-150.112233,0.000191,2]
[338321823,1726497040734,-267.150929,0.000191,2]
[338321825,1726497040744,-3000.0,0.0001911,2]
[338321827,1726497040759,-3000.0,0.0001912,2]
[338321829,1726497040768,-26636.1838688,0.0001912,3]
[338321831,1726497040778,-3000.0,0.0001913,2]
[338321833,1726497040788,-3000.0,0.0001914,2]